bitfinex/quotes_ETHUSD_20240716
["timestamp","ask_amount","ask_price","bid_price","bid_amount"]
[1721139617168,2.92953,3413.6,3412.6,2.93031]
[1721139617382,2.92932,3413.8,3412.6,2.93031]
[1721139617536,2.92913,3414.0,3412.4,2.3462]
[1721139617537,2.92917,3414.0,3413.1,2.92986]
[1721139617875,2.92917,3414.0,3413.2,2.3462]
[1721139618388,2.92933,3413.8,3413.2,2.3462]
[1721139618677,2.92933,3413.8,3412.6,3.0]
[1721139618678,2.92964,3413.4,3412.6,3.0]
[1721139618976,2.92964,3413.4,3412.7,2.2888]
[1721139619175,2.92982,3413.2,3412.7,2.2888]
[1721139619540,2.92965,3413.4,3412.7,2.2888]
[1721139619779,2.92982,3413.2,3412.7,2.2888]
[1721139619987,2.92965,3413.4,3412.7,2.2888]
[1721139620191,6.29933,3413.8,3412.7,2.2888]
[1721139620192,2.92974,3413.3,3412.7,2.2888]
[1721139620340,3.37,3413.8,3412.7,2.2888]
[1721139620341,2.92944,3413.7,3412.7,2.2888]
[1721139620540,2.92913,3414.0,3412.9,2.93005]
[1721139620754,2.92937,3413.7,3412.9,2.93005]
[1721139621377,2.92913,3414.0,3412.9,2.93005]
[1721139621581,2.93399,3414.2,3412.7,2.2888]
[1721139621741,2.92953,3413.6,3412.7,5.2888]
[1721139621941,2.93399,3414.2,3412.7,8.21898]
[1721139621942,2.92932,3413.8,3412.7,8.21898]
[1721139622196,2.92928,3413.8,3413.0,2.92996]
[1721139622478,2.92928,3413.8,3412.9,2.93]
[1721139622479,2.92915,3414.0,3413.1,2.92982]
[1721139622664,2.92915,3414.0,3413.2,2.92974]
[1721139622665,2.92912,3414.0,3413.2,2.92974]
[1721139622864,2.92912,3414.0,3413.0,2.9299]
[1721139623076,2.92912,3414.0,3413.2,2.4514]
[1721139623255,2.92912,3414.0,3413.2,5.38119]
[1721139623580,2.92912,3414.0,3413.2,2.4514]
[1721139623959,2.92912,3414.0,3413.2,5.3812]
[1721139625558,2.92912,3414.0,3413.2,2.4514]
[1721139625954,2.92938,3413.7,3413.2,5.4514]
[1721139626168,2.92938,3413.7,3413.2,2.4514]
[1721139626367,2.92968,3413.4,3412.9,3.0]
[1721139626648,0.005,3414.2,3412.7,2.2666]
[1721139626885,2.92961,3413.5,3412.7,2.2666]
[1721139627090,2.92951,3413.6,3412.7,2.2666]
[1721139627240,2.92998,3413.0,3412.7,2.2666]
[1721139627445,2.92998,3413.0,3412.0,2.483]
[1721139627677,2.92981,3413.2,3412.2,2.93064]
[1721139628828,2.92994,3413.1,3412.1,2.93066]
[1721139629084,3.37,3413.8,3412.0,2.483]
[1721139629085,3.37,3413.8,3412.3,2.93056]
[1721139629661,2.92947,3413.6,3412.5,2.93034]
[1721139629870,2.92924,3413.9,3412.9,2.93]
[1721139630068,2.92931,3413.8,3412.9,2.93]
[1721139630361,2.92954,3413.6,3412.6,2.4196]
[1721139630561,2.92911,3414.0,3412.8,2.93011]
[1721139630885,2.92911,3414.0,3413.0,2.92996]
[1721139630886,2.92927,3413.9,3413.0,2.92996]
[1721139631100,2.92911,3414.0,3412.9,2.92999]
[1721139631101,2.92928,3413.8,3412.9,2.92999]
[1721139631250,2.92928,3413.8,3413.0,2.92996]
[1721139631760,2.92928,3413.8,3412.8,2.93008]
[1721139631998,3.37,3414.3,3412.9,3.0]
[1721139631999,2.92956,3413.5,3412.9,3.0]
[1721139632149,2.92956,3413.5,3412.6,5.4196]
[1721139632352,3.37,3413.8,3412.6,2.41026943]
[1721139632562,2.9296,3413.5,3412.6,2.41026943]
[1721139632901,2.92975,3413.3,3412.6,2.41026943]
[1721139633061,6.462,3413.8,3412.6,2.41026943]
[1721139633263,2.92992,3413.1,3412.6,2.41026943]
[1721139633767,2.92997,3413.0,3412.6,2.41026943]
[1721139634563,2.92943,3413.7,3412.6,2.41026943]
[1721139635212,2.92943,3413.7,3412.8,2.93007]
[1721139635801,2.92923,3413.9,3412.9,2.93004]
[1721139635802,2.92925,3413.9,3412.9,2.93004]
[1721139635997,2.92938,3413.7,3412.9,2.93004]
[1721139636506,2.9293,3413.8,3412.9,2.93004]
[1721139636699,2.92938,3413.7,3412.7,2.93016]
[1721139637010,2.92938,3413.7,3412.8,2.93013]
[1721139637509,2.9291,3414.1,3412.6,2.41026943]
[1721139637663,3.375,3414.2,3412.6,2.41026943]
[1721139637664,2.92927,3413.9,3412.6,2.41026943]
[1721139638272,2.92945,3413.6,3412.7,2.93022]
[1721139638484,2.92945,3413.6,3412.8,3.0]
[1721139639590,2.92903,3414.1,3413.2,2.92978]
[1721139641282,2.92912,3414.0,3413.2,2.92978]
[1721139641689,0.005,3414.2,3413.3,2.92968]
[1721139641892,5.8582,3414.1,3413.3,2.92968]
[1721139642097,5.8582,3414.1,3413.1,2.92981]
[1721139642316,2.92914,3414.0,3413.1,2.92981]
[1721139642977,2.92914,3414.0,3412.9,2.3194]
[1721139642978,2.92956,3413.5,3412.9,2.3194]
[1721139643509,3.37,3413.8,3412.6,2.93031]
[1721139643707,3.37,3413.8,3412.4,2.3667]
[1721139643708,2.92964,3413.4,3412.4,5.29714]
[1721139643879,2.9294,3413.7,3412.4,5.29714]
[1721139644081,2.92957,3413.5,3412.5,2.93034]
[1721139644278,2.92957,3413.5,3412.4,5.29714]
[1721139644802,2.92969,3413.4,3412.5,3.0]
[1721139645007,2.527,3413.8,3412.4,2.3667]
[1721139645008,2.92978,3413.3,3412.4,2.3667]
[1721139646196,2.93042,3412.5,3411.9,2.273]
[1721139647209,2.93023,3412.7,3411.9,2.273]
[1721139647371,2.92991,3413.1,3411.9,2.273]
[1721139647716,2.93015,3412.8,3411.9,5.20383]
[1721139647895,2.93023,3412.7,3411.9,5.20383]
[1721139648073,2.93023,3412.7,3412.0,3.0]
[1721139648274,2.93023,3412.7,3411.9,2.273]
[1721139648773,2.93009,3412.9,3411.9,2.273]
[1721139648975,2.93,3413.0,3411.9,2.273]
[1721139648976,2.93,3413.0,3412.1,2.93069]
[1721139649176,1.21903356,3413.2,3412.2,5.93063]
[1721139649372,1.21903356,3413.3,3412.6,2.4869]
[1721139649689,1.82855034,3413.8,3412.7,2.93015]
[1721139649690,1.21903356,3413.8,3412.7,2.93015]
[1721139649868,4.45302195,3413.9,3413.0,2.92995]
[1721139649869,4.14826356,3413.9,3413.0,2.92995]
[1721139650074,4.14807356,3414.1,3413.1,5.92988]
[1721139650272,2.9292,3413.9,3413.1,3.0]
[1721139650721,2.9294,3413.7,3412.7,2.93018]
[1721139650869,2.9294,3413.7,3412.6,2.4869]
[1721139650870,2.92946,3413.6,3412.6,2.4869]
[1721139651345,2.92946,3413.6,3412.6,5.41718]
[1721139651612,2.92946,3413.6,3412.7,3.0]
[1721139651817,4.59003356,3413.6,3412.6,2.4869]
[1721139652025,2.92986,3413.2,3412.6,2.4869]
[1721139652412,1.21903356,3413.3,3412.6,2.4869]
[1721139652781,2.92973,3413.3,3412.6,2.4869]
[1721139653003,1.21903356,3413.4,3412.7,2.93023]
[1721139653205,1.21903356,3413.5,3412.6,2.4869]
[1721139653377,1.21903356,3413.4,3412.6,2.4869]
[1721139653583,1.21903356,3413.5,3412.6,2.4869]
[1721139653801,1.21903356,3413.5,3412.6,5.4869]
[1721139653802,4.14875356,3413.3,3412.6,5.4869]
[1721139654112,4.14875356,3413.3,3412.6,2.4869]
[1721139654697,4.14875356,3413.3,3412.6,5.4869]
[1721139654902,1.21903356,3413.2,3412.6,2.4869]
[1721139655311,2.93011,3412.9,3412.4,3.0]
[1721139655514,2.93011,3412.9,3412.1,2.3827]
[1721139655515,1.21903356,3412.8,3412.1,2.3827]
[1721139655688,2.93011,3412.9,3412.1,2.3827]
[1721139655907,4.14914356,3412.9,3412.1,2.3827]
[1721139656289,2.93015,3412.8,3412.1,2.3827]
[1721139656530,2.89875,3412.8,3412.1,2.3827]
[1721139656683,4.14926356,3412.7,3412.1,2.3827]
[1721139657030,4.14926356,3412.7,3411.6,2.93113]
[1721139657031,2.93063,3412.3,3411.6,2.3412]
[1721139657192,4.14966356,3412.3,3411.6,2.3412]
[1721139657580,4.14969356,3412.2,3411.6,2.3412]
[1721139657779,4.14969356,3412.2,3411.0,5.27288]
[1721139657780,2.93087,3412.0,3411.0,5.27288]
[1721139658133,2.93087,3412.0,3411.1,2.9316]
[1721139658781,2.93094,3411.9,3411.0,2.3412]
[1721139658991,2.9311,3411.7,3411.0,2.3412]
[1721139660150,2.93117,3411.6,3411.0,2.3412]
[1721139661219,1.21903356,3412.0,3411.0,2.3412]
[1721139661407,1.52651813,3412.1,3411.4,2.93128]
[1721139661408,1.21903356,3412.1,3411.4,2.93128]
[1721139661610,2.93075,3412.1,3411.5,3.0]
[1721139661990,2.93075,3412.1,3411.0,5.3412]
[1721139661991,2.93093,3411.9,3411.0,5.3412]
[1721139662196,2.93093,3411.9,3411.1,3.0]
[1721139662728,2.93093,3411.9,3411.1,2.93159]
[1721139662729,2.74733,3411.9,3411.1,2.93159]
[1721139663030,1.52587693,3412.4,3411.0,5.3412]
[1721139663031,2.93066,3412.2,3411.0,5.3412]
[1721139663230,2.93066,3412.2,3411.1,3.0]
[1721139663430,2.93054,3412.4,3411.4,2.93133]
[1721139663605,4.59170155,3412.6,3410.9,0.0056804]
[1721139663606,4.15105155,3412.6,3411.6,2.2952]
[1721139663810,2.45945,3412.6,3411.7,2.93103]
[1721139664153,4.15088155,3412.8,3411.8,2.93098]
[1721139664296,2.93018,3412.8,3411.9,2.9309]
[1721139664495,2.93035,3412.6,3411.7,5.93106]
[1721139664691,2.93035,3412.6,3411.7,5.93101]
[1721139665129,7.08073155,3413.0,3411.8,2.93092]
[1721139665341,7.08073155,3413.0,3412.3,2.93057]
[1721139665342,1.22070155,3413.0,3412.3,2.93057]
[1721139665634,2.92988,3413.1,3412.3,2.93057]
[1721139665841,4.15047155,3413.3,3412.4,2.93046]
[1721139666024,1.22070155,3413.4,3412.5,2.93033]
[1721139666195,1.52726571,3413.6,3412.7,2.93022]
[1721139666196,1.22070155,3413.6,3412.7,2.93022]
[1721139666391,2.92955,3413.5,3412.6,3.0]
[1721139666595,2.92972,3413.3,3412.5,3.0]
[1721139667135,2.92981,3413.2,3412.5,3.0]
[1721139667298,2.92981,3413.2,3412.1,2.2571]
[1721139667500,2.92981,3413.2,3412.1,5.1878]
[1721139667819,2.92997,3413.1,3412.2,3.0]
[1721139668030,1.22070155,3413.2,3412.1,2.2571]
[1721139668199,2.93012,3412.9,3412.1,2.2571]
[1721139668399,2.93023,3412.7,3412.1,2.2571]
[1721139668627,1.22070155,3412.9,3411.0,2.4787]
[1721139668832,1.22070155,3412.7,3411.2,2.93151]
[1721139669029,1.22070155,3412.7,3411.0,2.4787]
[1721139669030,1.22070155,3412.5,3411.0,2.4787]
[1721139669340,2.93126,3411.5,3411.0,2.4787]
[1721139669701,2.93144,3411.3,3410.9,0.0056804]
[1721139669900,2.93154,3411.2,3410.9,0.0056804]
[1721139670103,0.293126,3411.4,3410.9,0.0056804]
[1721139670525,2.93151,3411.3,3410.9,0.0056804]
[1721139671245,0.293126,3411.4,3410.9,0.0056804]
[1721139671398,3.2539216,3411.3,3410.9,0.0056804]
[1721139671602,2.93154,3411.2,3410.9,0.0056804]
[1721139672611,0.3224316,3411.3,3410.9,0.0056804]
[1721139673027,2.93169,3411.0,3410.9,0.0056804]
[1721139673227,5.86338,3411.0,3410.9,0.0056804]
[1721139673444,6.48196116,3411.0,3410.9,0.0056804]
[1721139675401,3.55027116,3411.0,3410.9,0.0056804]
[1721139675602,4.15342981,3411.7,3410.9,0.0056804]
[1721139675603,2.93115,3411.7,3410.9,0.0056804]
[1721139675840,3.371,3411.9,3410.9,0.0056804]
[1721139676047,2.93133,3411.5,3410.9,0.0056804]
[1721139676339,2.93109,3411.7,3410.9,0.0056804]
[1721139676716,2.93126,3411.5,3410.9,0.0056804]
[1721139677038,5.86316,3411.2,3410.9,0.0056804]
[1721139677339,2.93145,3411.3,3410.9,0.0056804]
[1721139677639,2.93152,3411.2,3410.9,0.0056804]
[1721139677851,2.93169,3411.0,3410.9,0.0056804]
[1721139678011,5.86338,3411.0,3410.9,0.0056804]
[1721139678216,6.449718,3411.0,3410.9,0.0056804]
[1721139678640,9.820718,3411.0,3410.9,0.0056804]
[1721139680441,6.449718,3411.0,3410.9,0.0056804]
[1721139680951,3.518028,3411.0,3410.9,0.0056804]
[1721139681332,0.586338,3411.0,3410.9,0.0056804]
[1721139681534,2.93169,3411.0,3410.9,0.0056804]
[1721139682118,2.93146,3411.3,3410.9,0.0056804]
[1721139682568,0.293126,3411.4,3410.9,0.0056804]
[1721139682739,2.93128,3411.5,3410.9,0.0056804]
[1721139682941,2.93134,3411.4,3410.9,0.0056804]
[1721139683146,2.93121,3411.6,3410.9,0.0056804]
[1721139683358,6.30181,3412.1,3410.9,0.0056804]
[1721139683657,6.30181,3412.1,3411.0,2.93164]
[1721139683658,2.93098,3411.9,3411.0,2.93164]
[1721139683972,2.93081,3412.1,3411.0,3.75409104]
[1721139684282,2.93061,3412.3,3411.0,3.75409104]
[1721139684283,2.93061,3412.3,3411.3,2.93141]
[1721139684570,2.93076,3412.1,3411.3,2.93142]
[1721139685265,2.93092,3411.9,3411.1,3.0]
[1721139685466,2.93101,3411.8,3411.1,3.0]
[1721139685699,2.93101,3411.8,3410.9,2.9373904]
[1721139685700,2.93101,3411.8,3411.0,5.93168]
[1721139685895,2.93076,3412.1,3411.0,7.05414704]
[1721139686202,2.93077,3412.1,3411.2,2.93147]
[1721139686404,2.93077,3412.1,3411.0,7.05414704]
[1721139686586,2.93084,3412.0,3411.0,7.05414704]
[1721139686763,2.93084,3412.0,3411.0,4.12246704]
[1721139686968,2.9306,3412.3,3411.2,2.93151]
[1721139687166,2.93098,3411.9,3411.0,3.0]
[1721139687501,2.931,3411.8,3411.0,3.0]
[1721139687708,2.93109,3411.7,3411.0,3.0]
[1721139688005,2.93084,3412.0,3410.9,2.9373904]
[1721139688177,2.93093,3411.9,3411.0,7.05415304]
[1721139688759,2.93101,3411.8,3411.0,4.12246304]
[1721139688990,2.93101,3411.8,3410.9,3.0056804]
[1721139689404,2.93114,3411.7,3410.9,3.0056804]
[1721139689601,2.93114,3411.7,3410.9,0.0056804]
[1721139689976,2.9309,3412.0,3411.1,2.93154]
[1721139690182,2.9309,3412.0,3411.2,3.0]
[1721139690474,2.93069,3412.2,3411.2,5.9315]
[1721139690475,2.93077,3412.1,3411.2,5.9315]
[1721139690790,2.93084,3412.0,3411.2,6.87337204]
[1721139690967,2.93084,3412.0,3411.2,3.0]
[1721139691168,2.93085,3412.0,3411.0,3.0]
[1721139691526,2.93109,3411.7,3410.9,3.0056804]
[1721139691717,2.9312,3411.6,3410.9,0.0056804]
[1721139692008,3.517425,3411.6,3410.9,0.0056804]
[1721139692178,2.93085,3412.0,3410.9,2.9374504]
[1721139692380,2.93097,3411.9,3410.9,2.9374504]
[1721139692587,2.93085,3412.0,3410.9,2.9374504]
[1721139692588,2.93114,3411.7,3410.9,0.0056804]
[1721139692802,6.3018,3412.1,3411.2,2.93151]
[1721139692986,2.93089,3412.0,3411.2,2.93151]
[1721139693510,2.93043,3412.5,3411.5,2.93125]
[1721139693714,2.93032,3412.6,3411.8,2.93098]
[1721139694008,2.9302,3412.8,3411.7,2.931]
[1721139694168,1.21780962,3413.0,3412.0,2.93075]
[1721139694371,2.92983,3413.2,3412.3,2.93051]
[1721139694372,2.92989,3413.1,3412.3,2.93051]
[1721139694593,2.93015,3412.8,3412.1,3.0]
[1721139694799,2.93015,3412.8,3411.9,2.93084]
[1721139695106,2.93015,3412.8,3411.8,5.93093]
[1721139695107,2.93032,3412.6,3412.0,3.0]
[1721139695405,2.93015,3412.8,3411.8,3.0]
[1721139695406,2.93029,3412.7,3411.8,5.93091]
[1721139695602,3.371,3413.1,3411.8,4.123077]
[1721139695771,2.92997,3413.0,3411.7,5.931]
[1721139695975,2.92997,3413.0,3411.7,3.0]
[1721139696173,2.92997,3413.0,3411.8,0.55]
[1721139696472,2.92997,3413.0,3411.8,3.48096]
[1721139696672,2.93016,3412.8,3411.9,3.0]
[1721139696873,0.586013,3412.7,3411.9,3.0]
[1721139697079,2.92997,3413.0,3412.1,2.93073]
[1721139697417,3.222863,3413.2,3412.3,2.93055]
[1721139697573,3.222863,3413.2,3412.4,2.4635]
[1721139699226,2.92988,3413.2,3412.4,5.39397]
[1721139699576,2.92971,3413.3,3412.4,5.39397]
[1721139700021,3.371,3413.6,3412.4,5.39397]
[1721139700022,2.92946,3413.6,3412.7,2.93017]
[1721139700376,5.859,3413.6,3412.7,2.93017]
[1721139700702,0.5859,3413.5,3412.7,2.93017]
[1721139700874,2.92932,3413.8,3412.7,2.93017]
[1721139701078,2.92932,3413.8,3412.4,2.4635]
[1721139701079,2.92934,3413.8,3413.0,2.92996]
[1721139701305,2.9294,3413.7,3412.8,2.93008]
[1721139701724,2.9294,3413.7,3412.8,2.93007]
[1721139702012,2.9294,3413.7,3412.9,2.93]
[1721139702311,2.92934,3413.8,3412.9,2.93]
[1721139702486,2.92934,3413.8,3412.9,3.516007]
[1721139702975,2.92934,3413.8,3412.9,2.93]
[1721139702976,2.92941,3413.7,3412.9,2.93]
[1721139703183,2.92946,3413.6,3412.7,2.93018]
[1721139703411,2.92946,3413.6,3412.8,2.93014]
[1721139703725,2.92956,3413.5,3412.5,2.93037]
[1721139703889,2.92956,3413.5,3412.7,2.93017]
[1721139704126,2.92956,3413.5,3412.5,0.839387]
[1721139704324,2.92972,3413.3,3412.5,3.0]
[1721139705316,2.92958,3413.5,3412.4,2.4635]
[1721139705521,2.92963,3413.4,3412.5,2.93035]
[1721139706364,2.92963,3413.4,3412.4,5.3939]
[1721139706365,2.92941,3413.7,3412.8,2.93008]
[1721139706515,2.92941,3413.7,3412.8,5.86014]
[1721139706717,3.515272,3413.7,3412.9,2.93003]
[1721139706914,2.92948,3413.6,3412.7,2.93016]
[1721139707320,2.92948,3413.6,3412.8,2.93013]
[1721139707528,2.92948,3413.6,3412.5,2.93039]
[1721139707764,2.92981,3413.2,3412.4,5.39397]
[1721139707963,2.92981,3413.2,3412.5,3.0]
[1721139708120,3.515759,3413.2,3412.5,3.0]
[1721139708465,3.515759,3413.2,3412.4,5.4635]
[1721139708620,3.515759,3413.2,3412.4,2.4635]
[1721139708822,2.92989,3413.1,3412.4,2.4635]
[1721139709021,0.6445649,3413.1,3412.4,2.4635]
[1721139709222,6.463,3413.6,3412.0,3.0]
[1721139709223,2.93015,3412.8,3412.0,3.0]
[1721139710064,2.93015,3412.8,3411.9,5.42493]
[1721139710251,2.93015,3412.8,3412.0,3.0]
[1721139711171,2.93051,3412.4,3411.9,2.4941]
[1721139711522,2.93051,3412.4,3411.4,5.33664]
[1721139711845,2.93037,3412.6,3411.4,2.4053]
[1721139711846,3.092,3412.5,3411.4,2.4053]
[1721139712044,2.93099,3411.9,3411.4,2.4053]
[1721139712424,2.93103,3411.8,3411.4,2.4053]
[1721139712761,2.93103,3411.8,3410.9,5.3427204]
[1721139712935,2.93103,3411.8,3410.9,6.90019244]
[1721139713335,2.93117,3411.7,3410.9,2.4109804]
[1721139713655,2.93136,3411.4,3410.9,2.4109804]
[1721139714457,2.93136,3411.4,3410.9,0.0056804]
[1721139714651,2.93126,3411.5,3410.9,0.0056804]
[1721139714855,2.93109,3411.7,3411.0,2.3498]
[1721139715031,2.93084,3412.0,3411.0,5.51702804]
[1721139715371,2.93084,3412.0,3411.0,2.58534804]
[1721139715372,2.93106,3411.8,3411.0,2.58534804]
[1721139717968,3.371,3412.1,3411.0,2.3498]
[1721139718162,2.93126,3411.5,3411.0,2.3498]
[1721139718555,2.93126,3411.5,3410.9,0.0056804]
[1721139719084,5.86338,3411.0,3410.9,0.0056804]
[1721139719378,6.449718,3411.0,3410.9,0.0056804]
[1721139719779,3.518028,3411.0,3410.9,0.0056804]
[1721139719954,6.449718,3411.0,3410.9,0.0056804]
[1721139721050,3.518028,3411.0,3410.9,0.0056804]
[1721139721273,2.93169,3411.0,3410.9,0.0056804]
[1721139721768,2.93128,3411.5,3410.9,0.0056804]
[1721139721961,1.52101298,3412.1,3410.9,2.3979804]
[1721139721962,2.93136,3411.4,3410.9,2.3979804]
[1721139724011,2.93084,3412.0,3411.1,2.93156]
[1721139724012,2.93091,3412.0,3411.1,2.93156]
[1721139724310,2.93091,3412.0,3411.2,0.53295404]
[1721139724447,2.93072,3412.2,3411.3,2.93137]
[1721139724984,2.93072,3412.2,3411.2,0.53295404]
[1721139724985,2.93075,3412.1,3411.2,3.46445404]
[1721139725288,2.9304,3412.5,3411.5,2.93124]
[1721139725490,3.56054,3412.5,3411.3,3.55]
[1721139725662,2.93066,3412.2,3411.4,2.93134]
[1721139726382,3.56054,3412.5,3411.6,2.4042]
[1721139727060,2.93063,3412.3,3411.6,2.4042]
[1721139727276,3.371,3412.6,3411.6,2.4042]
[1721139727489,2.93034,3412.6,3411.7,3.764619]
[1721139727688,2.93042,3412.5,3411.7,3.764619]
[1721139727888,0.3371,3413.0,3411.7,3.764619]
[1721139727889,2.93033,3412.6,3411.8,2.931]
[1721139728102,2.9304,3412.5,3411.8,2.931]
[1721139728303,2.9304,3412.5,3411.7,0.833539]
[1721139728513,2.93057,3412.3,3411.6,2.4042]
[1721139728856,3.516484,3412.5,3411.3,3.0]
[1721139728857,2.93096,3411.9,3411.3,3.0]
[1721139729085,0.586064,3412.5,3411.3,3.0]
[1721139729313,2.93034,3412.6,3411.5,2.93124]
[1721139729513,2.93047,3412.5,3411.6,2.4056]
[1721139729822,2.93047,3412.5,3411.6,5.33674]
[1721139729980,2.93047,3412.5,3411.7,2.93108]
[1721139730893,2.93017,3412.8,3411.7,2.93108]
[1721139731091,2.93001,3413.0,3411.9,2.9309]
[1721139731439,2.93001,3413.0,3412.2,2.4145]
[1721139731440,2.93006,3412.9,3412.2,2.4145]
[1721139732599,2.93015,3412.8,3412.2,2.4145]
[1721139732834,2.9304,3412.6,3412.0,3.0]
[1721139732992,2.9304,3412.6,3411.7,2.3882]
[1721139733196,2.93099,3411.9,3411.6,7.3]
[1721139733398,2.93099,3411.9,3411.1,2.3882]
[1721139733729,2.93099,3411.9,3410.9,10.2374104]
[1721139733730,2.93141,3411.4,3410.9,0.0056804]
[1721139733925,2.93148,3411.3,3410.9,0.0056804]
[1721139734091,2.93161,3411.1,3410.9,0.0056804]
[1721139734292,6.156541,3411.0,3410.9,0.0056804]
[1721139735135,2.93169,3411.0,3410.9,0.0056804]
[1721139735496,5.86338,3411.0,3410.9,0.0056804]
[1721139736131,2.93169,3411.0,3410.9,0.0056804]
[1721139736347,5.86338,3411.0,3410.9,0.0056804]
[1721139736898,2.93169,3411.0,3410.9,0.0056804]
[1721139739222,6.449701,3411.0,3410.9,0.0056804]
[1721139739427,12.473391,3411.0,3410.9,0.0056804]
[1721139740021,18.405081,3411.0,3410.9,0.0056804]
[1721139740229,2.9328,3409.7,3409.3,2.4959]
[1721139740477,6.3035,3410.1,3409.3,2.4959]
[1721139740638,3.38495776,3410.1,3409.3,2.4959]
[1721139740840,2.93272,3409.8,3409.3,2.4959]
[1721139741049,2.93255,3410.0,3409.3,2.4959]
[1721139741398,2.93316,3409.3,3408.8,2.4959]
[1721139741535,2.93299,3409.5,3408.8,2.4959]
[1721139741536,2.93325,3409.2,3408.8,2.4959]
[1721139742139,3.22629,3409.2,3408.2,2.3165]
[1721139742754,2.93376,3408.6,3408.2,2.3165]
[1721139743068,2.93349,3408.9,3408.2,2.3165]
[1721139743254,2.93358,3408.8,3408.2,2.3165]
[1721139743457,2.93382,3408.6,3408.2,2.3165]
[1721139744378,2.93382,3408.6,3407.6,2.2656]
[1721139744379,2.93394,3408.4,3407.6,2.2656]
[1721139744957,2.93385,3408.5,3407.6,2.2656]
[1721139745270,2.93385,3408.5,3407.2,7.3]
[1721139745271,2.9345,3407.8,3407.2,7.3]
[1721139745425,2.93428,3408.0,3407.0,2.4107]
[1721139745627,2.93428,3408.0,3407.1,3.469591]
[1721139746238,2.93428,3408.0,3407.0,2.4107]
[1721139746439,2.93428,3408.0,3407.1,2.93503]
[1721139746966,2.93428,3408.0,3407.2,3.0]
[1721139747869,3.371,3408.1,3407.0,2.4107]
[1721139748027,2.9348,3407.4,3407.0,2.4107]
[1721139748229,0.586944,3407.4,3406.5,7.3]
[1721139748587,2.93493,3407.3,3406.4,5.32566]
[1721139748731,2.93495,3407.3,3406.4,5.32566]
[1721139748931,2.93495,3407.3,3406.5,2.93555]
[1721139749306,2.93471,3407.5,3406.4,2.3901]
[1721139749307,2.93497,3407.2,3406.4,2.3901]
[1721139749457,2.93511,3407.1,3406.4,2.3901]
[1721139749656,2.93517,3407.0,3406.4,2.3901]
[1721139749865,0.587008,3407.1,3405.8,12.61535]
[1721139749866,2.93522,3406.9,3405.8,12.61535]
[1721139750080,2.93522,3406.9,3405.8,5.31535]
[1721139750081,2.9354,3406.7,3405.8,5.31535]
[1721139750380,2.93549,3406.6,3405.8,2.3792]
[1721139750531,2.93549,3406.6,3405.8,5.31536]
[1721139750731,2.9356,3406.5,3405.8,2.3792]
[1721139751980,2.93565,3406.4,3405.8,2.3792]
[1721139752157,0.45177076,3406.6,3405.8,2.3792]
[1721139752158,2.93574,3406.3,3405.8,2.3792]
[1721139752372,3.958008,3407.1,3405.8,2.3792]
[1721139752546,2.93556,3406.5,3405.8,2.3792]
[1721139753171,2.93574,3406.3,3405.5,3.0]
[1721139753483,2.93574,3406.3,3405.3,2.93658]
[1721139753669,2.93599,3406.0,3405.1,9.6792]
[1721139754019,3.371,3406.1,3405.1,2.3792]
[1721139754020,2.93634,3405.6,3405.1,2.3792]
[1721139754487,2.93616,3405.8,3405.1,2.3792]
[1721139754698,2.93601,3406.0,3405.1,2.3792]
[1721139754856,3.523088,3405.9,3405.1,2.3792]
[1721139755189,3.371,3406.1,3405.1,2.3792]
[1721139755190,6.30691,3406.1,3405.1,2.3792]
[1721139755355,2.93599,3406.0,3405.1,2.3792]
[1721139755552,2.93637,3405.6,3405.1,2.3792]
[1721139756000,2.93642,3405.5,3404.6,2.93717]
[1721139756315,2.93642,3405.5,3404.5,2.4359]
[1721139756316,0.587268,3405.5,3404.5,2.4359]
[1721139756607,2.93686,3405.0,3404.5,2.4359]
[1721139756800,2.93668,3405.3,3404.5,2.4359]
[1721139757399,6.30734,3405.6,3404.5,5.37318]
[1721139757608,2.93634,3405.6,3404.6,0.537318]
[1721139757900,2.93626,3405.7,3404.8,2.93702]
[1721139758123,2.93626,3405.7,3404.6,5.93717]
[1721139758280,3.0,3406.1,3404.6,3.0]
[1721139758281,2.93658,3405.4,3404.6,3.0]
[1721139758462,3.230268,3405.3,3404.5,2.4359]
[1721139758662,2.93673,3405.2,3404.5,2.4359]
[1721139758968,2.93691,3405.0,3404.0,5.36338]
[1721139759173,2.93705,3404.8,3404.0,2.4257]
[1721139759499,2.93712,3404.7,3404.0,2.4257]
[1721139759857,2.9372,3404.6,3404.0,2.4257]
[1721139760293,2.93732,3404.5,3404.0,2.4257]
[1721139760468,2.9372,3404.6,3404.0,2.4257]
[1721139760686,3.092,3404.5,3403.5,2.93812]
[1721139760875,3.092,3404.5,3403.3,9.6054]
[1721139760876,2.93746,3404.3,3403.3,5.24372]
[1721139761071,0.3679417,3404.4,3402.7,2.4533347]
[1721139761382,0.3679417,3404.4,3403.3,2.9383]
[1721139761574,0.3679417,3404.4,3403.6,2.3054]
[1721139762081,0.587417,3404.7,3403.7,2.93791]
[1721139762268,2.93726,3404.6,3403.7,2.93791]
[1721139762474,2.93729,3404.5,3403.6,2.3054]
[1721139762673,3.958417,3404.7,3403.6,2.3054]
[1721139762875,2.9378,3403.9,3403.2,3.0]
[1721139763189,3.092,3404.5,3403.2,3.0]
[1721139763190,2.93768,3404.1,3403.2,2.93834]
[1721139763387,3.092,3404.5,3403.2,2.93834]
[1721139763388,2.93735,3404.5,3403.6,2.93806]